bitfinex/quotes_ETHUSD_20260207
["timestamp","ask_amount","ask_price","bid_price","bid_amount"]
[1770454858086,1.29336813,2025.2,2024.5,0.71379583]
[1770454858388,1.29336813,2025.2,2024.4,1.2349338]
[1770454858762,1.29536813,2025.2,2024.4,1.2349338]
[1770454859594,1.23645797,2025.2,2024.4,1.2349338]
[1770454859798,0.06091016,2025.2,2024.4,1.2349338]
[1770454860379,0.002,2025.2,2024.5,0.96328925]
[1770454860781,0.002,2025.2,2024.5,1.67708508]
[1770454861271,0.002,2025.2,2024.6,0.96328925]
[1770454861895,0.002,2025.4,2024.8,0.96328925]
[1770454863377,0.05891016,2025.3,2024.5,1.67708508]
[1770454863579,0.05891016,2025.3,2024.6,1.23480134]
[1770454863970,0.05891016,2025.2,2024.5,2.19812093]
[1770454864165,1.23635502,2025.4,2024.5,1.23483168]
[1770454864972,0.05891016,2024.9,2024.1,4.94032209]
[1770454865280,0.05891016,2024.9,2024.2,1.2350215]
[1770454865477,0.05891016,2024.8,2024.0,5.65464997]
[1770454865680,1.0385362,2025.2,2024.2,1.23504506]
[1770454865888,1.29355606,2024.9,2024.1,4.9404447]
[1770454866093,1.29355606,2024.9,2024.1,5.72572462]
[1770454866994,1.29355606,2024.9,2024.1,2.02039676]
[1770454869106,0.05891016,2024.2,2023.8,0.001]
[1770454869275,1.00716239,2024.5,2023.8,0.001]
[1770454869595,0.05891016,2024.2,2023.8,0.001]
[1770454869800,1.00716239,2024.5,2023.8,0.001]
[1770454870012,0.93610799,2024.8,2023.8,1.236271]
[1770454870169,0.05891016,2024.5,2024.3,0.001]
[1770454871175,1.29383744,2024.5,2024.3,0.001]
[1770454871573,0.62332362,2024.4,2024.3,0.001]
[1770454871994,4.93865038,2024.9,2024.3,0.001]
[1770454872890,0.002,2025.0,2024.3,0.001]
[1770454873092,0.05891016,2024.9,2024.3,0.001]
[1770454874305,0.002,2025.0,2024.3,1.23598979]
[1770454874470,1.92269914,2025.0,2024.3,1.23598979]
[1770454875105,0.002,2025.0,2024.3,0.001]
[1770454875274,0.05891016,2024.9,2024.3,0.001]
[1770454875470,0.002,2025.0,2024.3,0.001]
[1770454875901,0.002,2025.0,2024.3,1.0004998]
[1770454876276,0.002,2025.0,2024.3,0.001]
[1770454876696,0.002,2025.0,2024.3,0.61864641]
[1770454877305,0.002,2025.0,2024.4,1.2349338]
[1770454878099,0.002,2025.0,2024.4,2.2344336]
[1770454878402,0.002,2025.0,2024.5,0.9994998]
[1770454878604,0.002,2025.2,2024.5,0.9994998]
[1770454879182,0.002,2025.2,2024.7,0.9994998]
[1770454882497,0.002,2025.2,2024.9,0.9994998]
[1770454884187,0.002,2025.0,2024.9,0.9994998]
[1770454884385,0.002,2025.0,2024.9,1.7167947]
[1770454885015,0.002,2025.0,2024.9,2.95142357]
[1770454885219,0.002,2025.0,2024.4,0.001]
[1770454885505,0.002,2025.0,2024.5,1.23486509]
[1770454886803,0.002,2025.0,2024.4,1.23589168]
[1770454887494,0.002,2025.0,2024.4,0.001]
[1770454889606,0.06091016,2025.0,2024.4,0.001]
[1770454889998,0.002,2025.0,2024.4,0.001]
[1770454890516,0.002,2025.0,2024.4,1.0004998]
[1770454891294,0.002,2025.0,2024.5,2.2343726]
[1770454891497,0.002,2025.0,2024.6,0.71748638]
[1770454892306,0.002,2025.0,2024.7,0.9994998]
[1770454892822,0.002,2025.2,2024.7,0.9994998]
[1770454893293,0.00400001,2025.2,2024.8,1.23468984]
[1770454895016,0.002,2025.2,2024.9,0.9994998]
[1770454895187,0.002,2025.4,2025.0,1.2345679]
[1770454895392,0.00400001,2025.4,2025.1,0.71723393]
[1770454896717,0.002,2025.4,2025.1,1.6927316]
[1770454897111,0.002,2025.2,2025.1,1.6927316]
[1770454897318,0.002,2025.2,2025.1,2.92723853]
[1770454900424,0.002,2025.2,2024.7,0.001]
[1770454900625,0.00100001,2025.1,2024.7,1.23574941]
[1770454902226,0.00100001,2025.1,2024.7,0.001]
[1770454905432,1.06479251,2025.0,2024.4,0.001]
[1770454905606,1.00588235,2025.0,2024.4,0.001]
[1770454906002,1.00788235,2025.2,2024.4,0.001]
[1770454906203,0.05891016,2025.1,2024.4,0.001]
[1770454906457,1.00788235,2025.2,2024.4,0.001]
[1770454906647,1.2345679,2025.0,2024.4,0.001]
[1770454906809,0.62315069,2024.9,2024.4,0.001]
[1770454907748,0.002,2025.2,2024.4,0.001]
[1770454907954,1.23647963,2025.2,2024.4,0.001]
[1770454908249,1.00588235,2025.1,2024.4,0.001]
[1770454908545,1.23647963,2025.2,2024.4,0.001]
[1770454908546,0.002,2025.2,2024.4,0.001]
[1770454908721,2.24238472,2025.2,2024.4,0.001]
[1770454908912,0.72389827,2025.1,2024.4,0.001]
[1770454910139,1.06479251,2025.0,2024.3,0.001]
[1770454910723,1.06479251,2024.7,2024.3,0.001]
[1770454911032,0.05891016,2024.4,2024.3,0.001]
[1770454912154,1.23462887,2024.9,2024.3,0.001]
[1770454912311,0.72389827,2025.1,2024.3,0.001]
[1770454912312,1.95841677,2025.1,2024.3,0.001]
[1770454912627,0.66695976,2025.0,2024.3,0.001]
[1770454912808,1.90156335,2025.0,2024.3,1.23599481]
[1770454913015,1.90156335,2025.0,2024.3,0.001]
[1770454915657,1.00588235,2024.9,2024.3,0.001]
[1770454917709,1.23468984,2024.8,2024.3,0.001]
[1770454917916,0.71791274,2024.7,2024.3,0.001]
[1770454919327,1.00588235,2024.6,2024.3,0.001]
[1770454919643,0.71791274,2024.7,2024.3,0.001]
[1770454919942,1.95267004,2024.7,2024.3,0.001]
[1770454920344,0.71791274,2024.7,2024.3,0.001]
[1770454920947,1.90156831,2025.0,2024.3,0.97649767]
[1770454920948,0.66695976,2025.0,2024.3,0.97649767]
[1770454921246,0.002,2025.2,2024.3,0.97649767]
[1770454921758,0.002,2025.2,2024.5,0.97549767]
[1770454921916,0.002,2025.2,2024.5,0.001]
[1770454922118,0.002,2024.8,2024.5,0.001]
[1770454922352,0.002,2024.8,2024.5,0.6186669]
[1770454923519,0.002,2024.8,2024.5,1.59416457]
[1770454923724,0.002,2025.0,2024.7,2.21024849]
[1770454923963,0.002,2025.2,2024.7,2.21024849]
[1770454924128,0.00400001,2025.2,2024.7,2.21024849]
[1770454924464,0.00400001,2025.2,2024.8,0.71492518]
[1770454927061,0.002,2025.4,2025.0,0.98509611]
[1770454929172,0.002,2025.4,2025.1,1.23450693]
[1770454929565,0.002,2025.4,2025.0,5.92312386]
[1770454929566,0.00400001,2025.4,2025.0,1.23452769]
[1770454929871,1.05550898,2025.3,2024.5,1.8535033]
[1770454930068,1.05750899,2025.3,2024.7,1.2347436]
[1770454930249,0.00200001,2025.2,2024.7,1.2347436]
[1770454930738,0.00200001,2025.2,2024.9,1.23461804]
[1770454930944,0.00200001,2025.2,2025.0,1.23456475]
[1770454931265,0.00200001,2025.2,2024.7,2.1457499]
[1770454931469,0.00200001,2025.2,2024.8,0.77642218]
[1770454931772,0.00200001,2025.2,2024.7,1.23475082]
[1770454933502,0.00200001,2025.2,2024.7,2.1457499]
[1770454933912,0.00200001,2025.2,2024.8,0.91099908]
[1770454934593,0.00200001,2025.2,2024.9,0.001]
[1770454934891,0.002,2025.0,2024.9,0.001]
[1770454935263,0.002,2025.0,2024.9,1.23562887]
[1770454935484,0.002,2025.0,2024.9,1.94426137]
[1770454936167,0.002,2025.2,2024.9,1.94426137]
[1770454936168,0.00200001,2025.2,2024.9,1.94426137]
[1770454938861,5.99387022,2025.8,2025.2,0.91099908]
[1770454938862,0.002,2025.8,2025.2,0.91099908]
[1770454939067,0.002,2026.1,2025.8,0.91099908]
[1770454939265,0.002,2026.3,2025.9,1.19894371]
[1770454939576,0.002,2026.3,2026.1,2.14489671]
[1770454940367,0.002,2026.5,2026.1,2.14489671]
[1770454940964,0.002,2026.5,2026.2,0.91099908]
[1770454941176,2.22964444,2027.5,2026.2,0.91099908]
[1770454941500,1.95521042,2027.4,2026.3,1.23377584]
[1770454941787,1.05550898,2027.3,2026.3,1.23377584]
[1770454941959,0.05891016,2027.0,2026.3,1.23377584]
[1770454942590,1.05550898,2027.3,2026.3,1.23377584]
[1770454943383,1.95521042,2027.4,2026.3,2.14477492]
[1770454943384,2.01412058,2027.4,2026.3,2.14477492]
[1770454943694,0.69463244,2027.3,2026.4,0.70798783]
[1770454944090,0.69463244,2027.3,2026.5,1.23365408]
[1770454944773,2.22962225,2027.6,2026.5,2.14465316]
[1770454945377,1.23296546,2027.7,2026.5,2.14465316]
[1770454945794,0.05891016,2027.6,2026.5,1.23365408]
[1770454946872,1.29195176,2027.6,2026.5,2.14465316]
[1770454947592,1.2330416,2027.6,2026.6,0.91099908]
[1770454947770,0.002,2027.1,2026.6,0.91099908]
[1770454950179,0.002,2027.1,2026.7,1.23353234]
[1770454951601,0.002,2027.1,2026.5,1.23360247]
[1770454951778,0.06091016,2027.1,2026.5,1.23360247]
[1770454951983,0.06091016,2027.1,2026.4,1.23367458]
[1770454952179,2.22994859,2027.0,2026.3,0.001]
[1770454952503,0.72242579,2026.9,2026.3,0.001]
[1770454954706,0.72242579,2026.9,2026.0,4.93665883]
[1770454954707,0.99659882,2026.5,2026.0,0.001]
[1770454955016,0.99659882,2026.5,2025.8,1.23404156]
[1770454955527,0.05891016,2026.4,2025.8,1.23408028]
[1770454955817,0.05891016,2026.4,2025.7,1.23413836]
[1770454956181,0.05891016,2026.4,2025.8,1.23407886]
[1770454957609,1.29264177,2026.4,2025.5,1.23426314]
[1770454957786,1.29264177,2026.4,2025.6,0.70823148]
[1770454959197,0.9712234,2026.3,2025.4,1.23430872]
[1770454959810,1.23383673,2026.2,2025.2,2.16831729]
[1770454960781,1.03013356,2026.1,2025.7,0.001]
[1770454961100,1.03013356,2026.1,2025.5,0.001]
[1770454962111,1.23395853,2026.0,2025.5,0.001]
[1770454962406,0.71999262,2025.9,2025.5,0.001]
[1770454962578,0.002,2026.3,2025.5,0.93387131]
[1770454962980,0.05891016,2026.2,2025.5,0.93387131]
[1770454963205,1.03013356,2026.2,2025.5,0.001]
[1770454963606,1.03013356,2025.9,2025.5,0.001]
[1770454964105,1.23404231,2025.9,2025.5,0.001]
[1770454964308,1.85104591,2025.9,2025.5,0.001]
[1770454964806,0.6170036,2025.9,2025.5,0.001]
[1770454964994,1.23387753,2026.2,2025.5,0.001]
[1770454965195,2.26401109,2026.2,2025.5,0.001]
[1770454965397,1.29278769,2026.2,2025.5,0.001]
[1770454965578,1.23387753,2026.2,2025.5,0.001]
[1770454965883,1.29278769,2026.2,2025.5,0.001]
[1770454966087,1.95408042,2026.1,2025.5,0.001]
[1770454972112,0.72012499,2026.1,2025.5,0.001]
[1770454972286,0.002,2026.3,2025.5,0.93387131]
[1770454973807,0.002,2026.3,2025.8,0.93287131]
[1770454974032,0.002,2026.3,2025.9,2.16689075]
[1770454974994,0.002,2026.3,2026.0,0.93287131]
[1770454975484,1.23532634,2027.1,2026.1,0.93287131]
[1770454975798,0.05891016,2026.8,2025.9,2.16689075]
[1770454975999,0.002,2026.7,2025.9,2.16689075]
[1770454977810,0.002,2026.7,2026.0,0.93287131]
[1770454979688,0.002,2026.7,2026.1,2.16676894]
[1770454979888,4.99417259,2027.1,2026.2,0.93287131]
[1770454979889,0.002,2027.1,2026.2,0.93287131]
[1770454980200,0.002,2026.9,2026.2,0.93287131]
[1770454981811,0.002,2027.1,2026.2,0.93287131]
[1770454982016,0.002,2027.0,2026.3,2.16664715]
[1770454982324,1.03013356,2026.6,2025.7,0.001]
[1770454982495,1.03013356,2026.6,2025.7,1.23513684]
[1770454982696,0.9732234,2026.5,2025.7,1.23513684]
[1770454983209,0.05891016,2026.3,2025.7,0.001]
[1770454983517,0.05891016,2026.3,2025.5,0.001]
[1770454983518,1.03013356,2026.3,2025.5,0.001]
[1770454984036,1.03013356,2026.0,2025.5,0.001]
[1770454984723,0.05891016,2025.6,2024.8,1.23466165]
[1770454985217,0.05891016,2025.6,2024.7,4.9399587]
[1770454985218,0.05891016,2025.6,2024.7,1.23574122]
[1770454985628,0.05891016,2025.3,2024.7,0.001]
[1770454985830,0.05891016,2025.2,2024.7,0.001]
[1770454986130,1.23450693,2025.1,2024.7,0.001]
[1770454986322,0.62312219,2025.0,2024.7,0.001]
[1770454986542,4.93712453,2025.5,2024.7,0.001]
[1770454986700,0.05891016,2025.2,2024.7,0.001]
[1770454988339,0.95931481,2025.4,2024.7,0.001]
[1770454988537,0.05891016,2025.3,2024.7,0.001]
[1770454989435,0.05891016,2025.0,2024.7,0.001]
[1770454990940,1.23450693,2025.1,2024.7,0.001]
[1770454991111,0.71002653,2025.0,2024.7,0.001]
[1770454991539,0.76893669,2025.0,2024.7,0.001]
[1770454992325,1.23441646,2025.3,2024.7,0.001]
[1770454992641,0.16131016,2025.6,2024.7,0.001]
[1770454993015,1.23426314,2025.5,2024.7,1.23575082]
[1770454993519,0.92773058,2025.8,2024.7,1.23575082]
[1770454993721,1.23395853,2026.0,2024.9,0.93909008]
[1770454994052,1.29286869,2026.0,2024.9,0.93909008]
[1770454995239,1.20391138,2026.3,2025.1,0.93809008]
[1770454995431,0.05891016,2026.3,2025.1,0.93809008]
[1770454995632,5.92114695,2026.6,2025.1,0.93809008]
[1770454995808,0.78017016,2026.5,2025.1,0.93809008]
[1770454996014,0.05891016,2026.3,2025.1,0.93809008]
[1770454996225,0.78017016,2026.5,2025.1,0.93809008]
[1770454996710,0.05891016,2026.3,2025.1,0.93809008]
[1770454997122,0.78017016,2026.5,2025.1,0.93809008]
[1770454997324,1.90390192,2026.4,2025.3,0.93809008]
[1770454997733,0.05891016,2026.3,2025.3,0.93809008]
[1770454997933,1.90390192,2026.4,2025.3,0.93809008]
[1770454998447,0.002,2026.3,2025.3,0.93809008]
[1770454998743,0.68606156,2026.3,2025.3,0.93809008]
[1770454999245,0.74497172,2026.3,2025.3,0.93809008]
[1770454999448,0.74497172,2026.3,2025.4,2.17241416]
[1770454999743,1.97875502,2026.3,2025.5,0.93809008]
[1770455000247,0.74497172,2026.3,2025.5,0.93809008]
[1770455000543,0.002,2026.3,2025.5,0.93809008]
[1770455001516,0.002,2026.3,2025.7,0.93809008]
[1770455002553,0.002,2026.5,2026.0,0.93809008]
[1770455002723,0.002,2026.7,2026.0,0.93809008]
[1770455002919,0.002,2026.7,2026.2,0.93809008]
[1770455003640,0.002,2026.7,2026.4,0.93809008]
[1770455006021,0.002,2026.7,2026.2,4.93510339]
[1770455006022,0.002,2026.7,2026.2,1.23379925]
[1770455006250,0.002,2026.7,2026.2,1.23379429]
[1770455006545,0.002,2026.7,2026.2,5.55211756]
[1770455006855,0.002,2026.7,2026.4,1.23370167]
[1770455007225,0.002,2026.7,2026.4,2.17179175]
[1770455008258,0.002,2026.9,2026.5,0.93809008]
[1770455010471,0.002,2026.9,2026.6,1.23359321]
[1770455010640,0.002,2026.9,2026.2,1.85073517]
[1770455010849,0.002,2026.5,2026.1,1.23385302]
[1770455011037,0.002,2026.5,2026.0,1.23393048]
[1770455011229,0.002,2026.5,2026.1,1.23389632]
[1770455011442,0.002,2026.5,2026.0,1.23391274]
[1770455011659,0.002,2026.5,2026.1,0.61699811]
[1770455011862,0.002,2026.5,2026.1,1.85086553]
[1770455012063,0.002,2026.5,2026.2,1.23383175]
[1770455012442,0.002,2026.5,2025.8,1.23408036]
[1770455014563,0.98864074,2026.7,2026.2,0.93809008]
[1770455014564,0.002,2026.7,2026.2,0.93809008]
[1770455017673,0.002,2026.7,2026.3,1.23377584]
[1770455018765,0.002,2026.9,2026.4,1.00220084]
[1770455019659,0.002,2026.9,2026.6,1.00220084]
[1770455020466,0.002,2027.1,2026.6,1.00220084]
[1770455020667,0.002,2027.3,2026.7,1.00220084]
[1770455022546,0.002,2027.3,2026.8,1.23347148]
[1770455022736,0.002,2027.3,2026.9,0.71695582]
[1770455024648,0.002,2027.3,2027.0,1.23334977]
[1770455026249,0.002,2027.3,2026.9,0.71695582]
[1770455026475,0.002,2027.3,2026.8,1.23344705]
[1770455026672,0.002,2027.3,2026.6,0.71695582]
[1770455026975,0.002,2027.3,2026.6,1.40557733]
[1770455028054,0.002,2027.3,2026.7,1.00220084]
[1770455028466,0.002,2027.3,2026.8,0.71695582]
[1770455028671,0.002,2027.3,2026.9,1.23341062]
[1770455029756,0.002,2027.3,2026.8,1.95038854]
[1770455030082,0.002,2027.3,2026.9,0.68844256]
[1770455031279,0.002,2027.3,2026.9,1.92182035]
[1770455034980,0.96760112,2027.2,2026.8,0.71695582]
[1770455035184,0.96760112,2027.2,2026.5,1.23362142]
[1770455035380,2.20089005,2027.1,2026.6,0.71695582]
[1770455036484,2.26180021,2027.1,2026.6,0.71695582]
[1770455036684,0.96760112,2027.0,2026.6,0.71695582]
[1770455037061,0.05891016,2026.9,2026.4,0.001]
[1770455037256,0.96760112,2027.0,2026.5,0.71695582]
[1770455037455,2.20095736,2027.0,2026.5,0.71695582]
[1770455038385,0.71361162,2026.9,2026.5,0.71695582]
[1770455038681,0.71361162,2026.9,2026.5,1.9505836]
[1770455038882,0.002,2027.1,2026.5,1.9505836]
[1770455039114,0.002,2027.1,2026.5,2.95278444]
[1770455039288,0.002,2027.3,2026.6,1.00220084]
[1770455039458,0.002,2027.3,2026.7,1.23353234]
[1770455040296,0.002,2027.3,2026.9,1.00220084]
[1770455040592,1.23488332,2027.8,2026.8,0.71095582]
[1770455040762,0.002,2027.8,2026.9,1.29686974]
[1770455041286,0.002,2027.8,2027.1,1.00220084]
[1770455041477,0.002,2027.8,2027.2,1.23322809]
[1770455041674,0.002,2027.8,2027.3,0.71095582]
[1770455043670,0.002,2027.8,2027.4,1.23310644]
[1770455044096,0.002,2027.8,2027.5,0.71095582]
[1770455045712,0.002,2027.8,2027.1,1.00220084]
[1770455045713,1.23304562,2027.5,2026.7,1.23353234]
[1770455045874,1.23304562,2027.5,2026.8,0.71095582]
[1770455046074,2.20063311,2027.6,2026.8,0.71095582]
[1770455046474,1.01425782,2027.4,2026.8,0.71095582]
[1770455046681,0.05891016,2027.0,2026.4,0.001]
[1770455046912,0.05891016,2027.4,2026.6,1.23358655]
[1770455047321,0.05891016,2027.1,2026.7,0.71095582]
[1770455047503,0.05891016,2027.1,2026.5,0.71095582]
[1770455047705,1.23328893,2027.1,2026.5,1.94460192]
[1770455047890,1.94544863,2027.1,2026.5,1.94460192]
[1770455048079,1.94544863,2027.1,2026.5,0.71095582]
[1770455048402,2.00435879,2027.1,2026.5,0.71095582]
[1770455048722,1.94544863,2027.1,2026.5,1.94460934]
[1770455048878,1.94544863,2027.1,2026.9,0.001]
[1770455049082,0.78337567,2027.0,2026.9,0.001]
[1770455049277,1.23319373,2027.3,2026.9,0.001]
[1770455050083,0.002,2027.6,2026.9,0.71195582]
[1770455050276,0.002,2027.6,2027.0,0.71095582]
[1770455051631,0.002,2027.6,2027.0,1.69140169]
[1770455051910,0.002,2027.6,2027.1,1.23328893]
[1770455052287,0.002,2027.6,2027.2,0.71095582]
[1770455052488,0.05891016,2027.5,2027.0,0.71095582]
[1770455052804,0.94572647,2027.6,2027.0,0.71095582]
[1770455053017,0.002,2027.6,2027.0,1.9443015]
[1770455053188,0.002,2027.6,2027.0,0.71095582]
[1770455054210,1.00463663,2027.6,2027.0,0.71095582]
[1770455055618,0.94572647,2027.6,2027.0,0.71095582]
[1770455056419,1.23304562,2027.5,2027.0,0.71095582]
[1770455056593,1.00263663,2027.4,2027.0,0.71095582]
[1770455057696,1.71961906,2027.4,2027.0,0.71095582]
[1770455057898,0.77589259,2027.4,2027.0,0.71095582]
[1770455058936,0.05891016,2027.4,2027.0,0.71095582]
[1770455059302,1.23304562,2027.5,2027.0,0.71095582]
[1770455060713,4.93418249,2027.6,2027.0,0.71095582]
[1770455061031,1.2349848,2027.6,2027.2,0.001]
[1770455061538,0.002,2027.6,2027.3,0.71095582]
[1770455063238,0.002,2027.6,2027.3,1.94408014]
[1770455063544,0.002,2027.6,2027.3,0.71095582]
[1770455063702,0.06091016,2027.6,2027.3,0.71095582]
[1770455066033,1.29389496,2027.6,2027.3,0.71095582]
[1770455066529,2.01104027,2027.6,2027.3,0.71095582]
[1770455066861,1.00263663,2027.3,2027.0,0.001]
[1770455067008,1.00263663,2027.3,2026.9,0.001]
[1770455067912,0.05891016,2027.0,2026.9,0.001]
[1770455068342,1.29225993,2027.0,2026.9,0.001]
[1770455068539,1.85589795,2027.0,2026.9,0.001]
[1770455070128,1.91480811,2027.0,2026.4,0.001]
[1770455070535,1.23310644,2027.4,2026.4,0.98144587]
[1770455070737,1.2920166,2027.4,2026.4,0.98144587]
[1770455071049,0.94372647,2027.3,2026.4,0.001]
[1770455072632,1.23322809,2027.2,2026.4,0.001]
[1770455073237,0.05891016,2027.1,2026.6,0.001]
[1770455073517,0.05891016,2026.8,2026.4,0.001]
[1770455073723,0.05891016,2026.5,2026.2,0.001]
[1770455074866,1.23371496,2026.4,2026.2,0.001]
[1770455075038,0.6227485,2026.3,2026.2,0.001]
[1770455075227,1.56647497,2026.3,2025.7,0.001]
[1770455075429,0.05891016,2026.1,2025.7,0.001]
[1770455076827,0.05891016,2026.1,2025.5,0.001]
[1770455076828,1.23414128,2025.7,2025.5,0.001]
[1770455077027,0.62296166,2025.6,2025.3,0.001]
[1770455077586,0.05891016,2025.5,2025.3,0.001]
[1770455078355,0.05891016,2025.5,2024.7,0.001]
[1770455079054,0.99751573,2025.2,2024.5,0.001]
[1770455079255,0.05891016,2024.6,2024.5,0.001]
[1770455079430,0.05891016,2024.9,2024.5,0.001]
[1770455079763,0.05891016,2024.6,2024.5,0.001]
[1770455079971,0.05891016,2024.9,2024.5,0.001]
[1770455080626,0.05891016,2024.6,2024.5,0.001]
[1770455081957,1.29372197,2024.6,2024.5,0.001]
[1770455082161,1.23481181,2024.6,2024.5,0.001]
[1770455082472,1.8521803,2024.6,2024.0,0.001]
[1770455082628,0.05891016,2024.4,2024.0,0.001]
[1770455083453,1.91109046,2024.6,2024.0,0.001]
[1770455084035,1.23475082,2024.7,2024.0,0.001]
[1770455084235,0.05891016,2024.6,2024.0,0.001]
[1770455084860,0.16131016,2024.6,2024.0,0.001]
[1770455086063,1.2345679,2025.0,2024.4,0.001]
[1770455086243,0.8998045,2024.9,2024.4,0.001]
[1770455087151,0.05891016,2024.6,2024.0,0.001]
[1770455088052,1.2348728,2024.5,2024.0,0.001]
[1770455089871,1.23484749,2024.6,2024.0,0.001]
[1770455090165,4.93884984,2024.8,2024.0,0.001]
[1770455090469,0.80119497,2024.7,2024.0,0.001]
[1770455090766,4.93884984,2024.8,2024.0,0.001]
[1770455091862,1.2346575,2024.9,2024.1,0.98783989]
[1770455092167,1.2346575,2024.9,2024.1,2.22293339]
[1770455092670,0.05891016,2024.7,2024.1,2.22295635]
[1770455093571,1.2346575,2024.9,2024.1,2.22295635]
[1770455093765,1.2346575,2024.9,2024.2,0.98883989]
[1770455094156,1.2345679,2025.0,2024.3,1.23499481]
[1770455094560,1.2345679,2025.0,2024.4,0.71638522]
[1770455095283,0.05891016,2025.0,2024.4,0.71638522]
[1770455096346,1.29349417,2025.0,2024.4,1.95131837]
[1770455096670,1.23454834,2025.1,2024.4,1.95131837]
[1770455096853,1.2934585,2025.1,2024.4,0.71638522]
[1770455097057,1.2934585,2025.1,2024.2,0.98883989]
[1770455097058,0.05891016,2024.5,2024.2,0.001]
[1770455099271,1.29378296,2024.5,2024.2,0.001]
[1770455099474,1.29578296,2024.5,2024.2,0.001]
[1770455100160,1.2368728,2024.5,2024.2,0.001]
[1770455100351,0.002,2024.5,2024.2,0.001]
[1770455100552,1.85468525,2024.5,2024.2,0.001]
[1770455101162,0.002,2024.5,2024.2,0.001]
[1770455101776,0.002,2024.5,2024.2,0.98883989]
[1770455103472,1.23439404,2025.3,2024.3,0.98783989]
[1770455103681,4.93734798,2025.4,2024.5,0.98783989]
[1770455103985,4.99625814,2025.4,2024.5,0.98783989]
[1770455104156,0.71691878,2025.3,2024.5,1.70409078]
[1770455106582,1.95134654,2025.3,2024.6,2.17871228]
[1770455106778,1.95134654,2025.3,2024.6,0.94390047]
[1770455106981,0.77582894,2025.3,2024.6,0.94390047]
[1770455107165,0.05891016,2025.3,2024.6,0.94390047]
[1770455110192,0.05891016,2025.3,2024.7,1.23475082]
[1770455110567,1.29329645,2025.3,2024.6,2.17866608]
[1770455110758,0.05891016,2025.3,2024.6,1.23476561]
[1770455111488,0.05891016,2025.3,2024.7,0.001]
[1770455111689,0.002,2025.1,2024.7,0.71632811]
[1770455112194,0.002,2025.1,2024.7,1.95106029]
[1770455115087,0.05891016,2025.0,2024.7,0.001]
[1770455115592,1.00743169,2025.0,2024.2,0.001]
[1770455115794,0.05891016,2024.4,2023.8,0.001]
[1770455116200,0.05891016,2024.5,2024.0,0.002]
[1770455116797,0.05891016,2024.5,2024.0,0.001]
[1770455116798,0.05891016,2024.4,2024.0,0.001]
[1770455116993,0.77706704,2024.4,2024.0,0.001]
[1770455117877,0.77706704,2024.4,2023.9,0.001]
[1770455118077,0.77706704,2024.4,2023.7,0.001]
[1770455118590,1.23499481,2024.3,2023.7,0.001]
[1770455118790,2.01203836,2024.4,2023.7,0.001]
[1770455119096,0.69516111,2024.3,2023.7,0.001]
[1770455119590,0.69516111,2024.3,2023.7,0.97916594]
[1770455119788,1.23483956,2024.6,2023.7,0.97916594]
[1770455120584,1.23483956,2024.6,2023.8,2.21346587]
[1770455120775,0.05891016,2024.4,2023.8,2.21346587]
[1770455120977,1.23483956,2024.6,2023.9,0.001]
[1770455121299,0.05891016,2024.4,2023.9,0.001]
[1770455121599,1.23483956,2024.6,2023.9,0.001]
[1770455121796,0.62327623,2024.5,2023.9,0.001]
[1770455121997,1.23483956,2024.6,2023.9,0.001]
[1770455121998,0.05891016,2024.6,2023.9,0.97916594]
[1770455122202,1.23471836,2024.8,2023.9,0.97916594]
[1770455122501,1.23465082,2024.9,2023.9,0.97916594]
[1770455122707,0.05891016,2024.8,2024.0,2.2133438]
[1770455122887,0.05891016,2024.8,2024.1,0.71550553]
[1770455123094,0.05891016,2024.5,2024.1,0.001]
[1770455123273,0.94852153,2024.8,2024.1,0.001]
[1770455123474,1.29351687,2025.0,2024.1,0.97916594]
[1770455125000,1.29351687,2025.0,2024.2,1.23505582]
[1770455125176,1.29351687,2025.0,2024.1,2.21423478]
[1770455125376,0.71822341,2024.9,2024.1,2.92981837]
[1770455125700,0.71822341,2024.9,2024.2,0.97816594]
[1770455126596,0.71822341,2024.9,2024.3,0.001]
[1770455126907,0.05891016,2024.8,2024.3,0.001]
[1770455127083,0.05891016,2024.5,2023.9,0.001]
[1770455127975,0.05891016,2024.2,2023.9,0.001]
[1770455129212,0.68228161,2024.2,2023.9,0.001]
[1770455130412,0.05891016,2023.8,2022.9,2.21397642]
[1770455130580,0.05891016,2023.5,2022.9,0.97816594]
[1770455130905,0.05891016,2023.8,2022.9,0.97816594]
[1770455130906,0.05891016,2023.4,2022.9,1.23584552]
[1770455131102,1.23536097,2023.7,2022.8,0.001]
[1770455131308,0.71842365,2023.6,2022.8,0.001]
[1770455132112,0.05891016,2023.5,2022.8,0.001]
[1770455132491,0.05891016,2023.2,2022.8,0.001]
[1770455132893,0.05891016,2023.2,2022.3,0.97816594]
[1770455132894,0.05891016,2022.9,2022.2,1.2362475]
[1770455133090,1.23582064,2023.0,2022.2,2.93038717]
[1770455133299,1.23577344,2023.1,2022.2,2.93038717]
[1770455134322,1.23577344,2023.1,2021.9,3.11357088]
[1770455134323,1.00743169,2022.7,2021.9,3.11357088]
[1770455134612,0.05891016,2022.3,2021.5,1.23666608]
[1770455134778,0.05891016,2022.5,2021.6,0.97816594]
[1770455135308,1.23615506,2022.4,2021.4,5.92512281]
[1770455135512,1.23615506,2022.4,2021.6,1.23663725]
[1770455135682,1.23615506,2022.4,2021.6,2.21480319]
[1770455135888,0.05891016,2022.3,2021.6,2.21480319]
[1770455136397,0.05891016,2022.3,2021.7,0.71616108]
[1770455136602,1.23615506,2022.4,2021.6,2.21480319]
[1770455137201,0.77497657,2022.5,2022.4,0.001]
[1770455137387,0.77497657,2022.5,2021.9,0.90301502]
[1770455139813,0.77497657,2022.5,2022.1,0.90301502]
[1770455140022,0.34157622,2023.1,2022.1,0.90301502]
[1770455141636,0.05891016,2023.0,2022.1,0.90301502]
[1770455142129,0.34157622,2023.1,2022.2,1.23627732]
[1770455142434,0.40048638,2023.1,2022.2,2.13929234]
[1770455142722,0.34157622,2023.1,2022.2,2.13929234]
[1770455142926,0.34985357,2023.5,2022.4,0.90301502]